[Event "Vergani Le Terrazze-Elite 2019"]
[Site "Villorba"]
[Date "2019.01.05"]
[Round "8"]
[White "Rahul Srivatshav P"]
[Black "Blohberger, Felix"]
[Result "1/2-1/2"]
[ECO "A13"]
[WhiteElo "2370"]
[BlackElo "2450"]
[Annotator "ChessBase"]
[PlyCount "40"]
[EventDate "2019.01.02"]
[EventType "swiss"]
[EventCountry "ITA"]
[SourceTitle "playchess.com"]
[Source "ChessBase"]
[SourceQuality "1"]
[TimeControl "5400+30"]

1. Nf3 {[%emt 0:00:00]} Nf6 {[%emt 0:03:45]} 2. e3 {[%emt 0:00:00]} d5 {[%emt 0:00:52]} 3. c4 {[%emt 0:00:04]} e6 {[%emt 0:00:05]} 4. b3 {[%emt 0:00:04]} Bd6 {[%emt 0:03:49]} 5. Bb2 {[%emt 0:00:13]} O-O {[%emt 0:01:31]} 6. Nc3 {[%emt 0:00:07]} a6 {[%emt 0:00:20]} 7. Be2 {[%emt 0:06:06]} b6 {[%emt 0:02:01]} 8. O-O {[%emt 0:07:15]} Bb7 {[%emt 0:00:34]} 9. d4 {[%emt 0:08:33]} Nbd7 {[%emt 0:00:19]} 10. Qc2 {[%emt 0:01:35]} Ne4 {[%emt 0:10:09]} 11. Bd3 {[%emt 0:07:43]} f5 {[%emt 0:01:28]} 12. Ne2 {[%emt 0:00:06]} Qe7 {[%emt 0:05:01]} 13. Ne5 {[%emt 0:09:52]} Rac8 {[%emt 0:18:24]} 14. Nxd7 {[%emt 0:10:13]} Qxd7 {[%emt 0:00:07]} 15. c5 {[%emt 0:02:16]} bxc5 {[%emt 0:06:34]} 16. Bxe4 {[%emt 0:00:30]} fxe4 {[%emt 0:00:29]} 17. dxc5 {[%emt 0:00:10]} Be7 {[%emt 0:00:11]} 18. Nd4 {[%emt 0:01:34]} Bf6 {[%emt 0:08:51]} 19. f4 {[%emt 0:04:05]} exf3 {[%emt 0:00:34]} 20. Nxf3 {[%emt 0:00:17]} d4 {[%emt 0:05:50]} 1/2-1/2

[Event "Vergani Le Terrazze-Elite 2019"]
[Site "Villorba"]
[Date "2019.01.06"]
[Round "9"]
[White "Blohberger, Felix"]
[Black "Ashwath, R.."]
[Result "1/2-1/2"]
[ECO "B31"]
[WhiteElo "2450"]
[BlackElo "2314"]
[Annotator "ChessBase"]
[PlyCount "64"]
[EventDate "2019.01.02"]
[EventType "swiss"]
[EventCountry "ITA"]
[SourceTitle "playchess.com"]
[Source "ChessBase"]
[SourceQuality "1"]
[TimeControl "5400+30"]

1. e4 {[%emt 0:08:18]} c5 {[%emt 0:03:18]} 2. Nf3 {[%emt 0:00:17]} Nc6 {[%emt 0:00:05]} 3. Bb5 {[%emt 0:00:07]} g6 {[%emt 0:00:07]} 4. O-O {[%emt 0:00:16]} Bg7 {[%emt 0:00:15]} 5. Re1 {[%emt 0:00:06]} e5 {[%emt 0:00:38]} 6. Bxc6 {[%emt 0:00:14]} dxc6 {[%emt 0:00:46]} 7. d3 {[%emt 0:00:07]} Qe7 {[%emt 0:02:41]} 8. Be3 {[%emt 0:02:47]} Bg4 {[%emt 0:05:57]} 9. Nbd2 {[%emt 0:02:07]} Nf6 {[%emt 0:01:03]} 10. h3 {[%emt 0:00:54]} Bxf3 {[%emt 0:00:37]} 11. Nxf3 {[%emt 0:00:19]} O-O {[%emt 0:01:19]} 12. a3 {[%emt 1:20:28]} Rfd8 {[%emt 0:01:21]} 13. Nd2 {[%emt 0:00:00]} Nd7 {[%emt 0:03:27]} 14. b4 {[%emt 0:00:00]} b6 {[%emt 0:02:33]} 15. Qb1 {[%emt 0:00:00]} Bf8 {[%emt 0:08:27]} 16. b5 {[%emt 0:00:00]} cxb5 {[%emt 0:05:11]} 17. Qxb5 {[%emt 0:00:00]} a6 {[%emt 0:06:39]} 18. Qb3 {[%emt 0:00:00]} b5 {[%emt 0:02:24]} 19. a4 {[%emt 0:00:00]} c4 {[%emt 0:01:30]} 20. dxc4 {[%emt 0:00:00]} Nc5 {[%emt 0:02:49]} 21. Qa2 {[%emt 0:00:00]} Nxa4 {[%emt 0:05:30]} 22. cxb5 {[%emt 0:00:00]} axb5 {[%emt 0:01:19]} 23. c4 {[%emt 0:00:00]} Nb6 {[%emt 0:05:23]} 24. Qb3 {[%emt 0:00:00]} Nxc4 {[%emt 0:00:49]} 25. Nxc4 {[%emt 0:00:00]} bxc4 {[%emt 0:00:26]} 26. Qxc4 {[%emt 0:00:00]} Qb4 {[%emt 0:02:40]} 27. Qxb4 {[%emt 0:00:00]} Bxb4 {[%emt 0:00:04]} 28. Rec1 {[%emt 0:00:00]} Rxa1 {[%emt 0:01:38]} 29. Rxa1 {[%emt 0:00:00]} Kg7 {[%emt 0:04:30]} 30. Bg5 {[%emt 0:00:00]} Rd4 {[%emt 0:02:06]} 31. Ra6 {[%emt 0:00:00]} Rd6 {[%emt 0:01:31]} 32. Rxd6 {[%emt 0:00:00]} Bxd6 {[%emt 0:00:07]} 1/2-1/2